[Event "4th CNE NED-ch Women Rapid"]
[Site "Amstelveen"]
[Date "2018.11.18"]
[Round "1"]
[White "Lanchava, Tea"]
[Black "Kazarian, Anna-Maja"]
[Result "1/2-1/2"]
[ECO "A20"]
[WhiteElo "2314"]
[BlackElo "2194"]
[Annotator "NA"]
[PlyCount "129"]
[EventDate "2018.11.18"]
[EventType "tourn"]
[EventCountry "NED"]
[SourceTitle "playchess.com"]
[Source "ChessBase"]
[SourceQuality "1"]
[TimeControl "900+10"]

1. c4 {[%emt 0:00:00]} e5 {[%emt 0:00:00]} 2. g3 {[%emt 0:00:00]} Nf6 {[%emt 0:00:00]} 3. Bg2 {[%emt 0:00:02]} d5 {[%emt 0:00:00]} 4. cxd5 {[%emt 0:00:04]} Nxd5 {[%emt 0:00:00]} 5. Nc3 {[%emt 0:00:02]} Nb6 {[%emt 0:00:00]} 6. d3 {[%emt 0:00:09]} Be7 {[%emt 0:00:12]} 7. Nf3 {[%emt 0:00:04]} Nc6 {[%emt 0:00:02]} 8. a3 {[%emt 0:00:02]} Be6 {[%emt 0:00:08]} 9. b4 {[%emt 0:00:17]} a5 {[%emt 0:00:08]} 10. b5 {[%emt 0:00:11]} Nd4 {[%emt 0:00:02]} 11. Nxe5 {[%emt 0:04:07]} Bb3 {[%emt 0:02:45]} 12. Qd2 {[%emt 0:00:03]} Nc2+ {[%emt 0:00:02]} 13. Kf1 {[%emt 0:00:02]} Nxa1 {[%emt 0:00:19]} 14. Bxb7 {[%emt 0:00:06]} O-O {[%emt 0:00:31]} 15. Nc6 {[%emt 0:01:11]} Qd7 {[%emt 0:00:28]} 16. Nxe7+ {[%emt 0:00:09]} Qxe7 {[%emt 0:00:02]} 17. Bxa8 {[%emt 0:00:03]} Rxa8 {[%emt 0:00:03]} 18. Qb2 {[%emt 0:00:12]} Re8 {[%emt 0:05:42]} 19. Qxa1 {[%emt 0:01:23]} Nd5 {[%emt 0:01:32]} 20. e4 {[%emt 0:01:23]} Bc2 {[%emt 0:00:03]} 21. Ke2 {[%emt 0:04:41]} Bxd3+ {[%emt 0:00:19]} 22. Kxd3 {[%emt 0:00:34]} Nxc3 {[%emt 0:00:06]} 23. Re1 {[%emt 0:01:08]} Nxe4 {[%emt 0:01:36]} 24. Be3 {[%emt 0:00:01]} Qd7+ {[%emt 0:00:10]} 25. Ke2 {[%emt 0:00:48]} Qxb5+ {[%emt 0:00:06]} 26. Kf3 {[%emt 0:00:01]} Qd5 {[%emt 0:00:24]} 27. Ke2 {[%emt 0:00:03]} Ng5 28. Qc3 {[%emt 0:00:41]} Qb5+ {[%emt 0:02:08]} 29. Qd3 {[%emt 0:00:13]} Qxd3+ {[%emt 0:01:26]} 30. Kxd3 {[%emt 0:00:01]} Nf3 31. Rc1 {[%emt 0:00:11]} c6 {[%emt 0:00:18]} 32. h4 {[%emt 0:00:06]} f5 {[%emt 0:00:37]} 33. Rc5 {[%emt 0:00:06]} Ne5+ {[%emt 0:00:24]} 34. Ke2 {[%emt 0:00:12]} Ng4 {[%emt 0:00:18]} 35. Rxf5 {[%emt 0:00:26]} Nxe3 {[%emt 0:00:01]} 36. fxe3 {[%emt 0:00:01]} Ra8 {[%emt 0:00:15]} 37. Rc5 {[%emt 0:00:01]} Ra6 {[%emt 0:00:01]} 38. Kd3 {[%emt 0:00:07]} Kf7 {[%emt 0:00:04]} 39. Kc4 {[%emt 0:00:01]} Ke6 {[%emt 0:00:04]} 40. Rg5 {[%emt 0:00:12]} g6 {[%emt 0:00:04]} 41. Kc5 {[%emt 0:00:13]} a4 {[%emt 0:00:01]} 42. Rg4 {[%emt 0:00:03]} Ra5+ {[%emt 0:00:35]} 43. Kxc6 {[%emt 0:00:04]} Re5 {[%emt 0:00:15]} 44. e4 {[%emt 0:00:06]} Ke7 {[%emt 0:00:37]} 45. Rf4 {[%emt 0:00:09]} h6 {[%emt 0:00:07]} 46. Kb6 {[%emt 0:00:15]} g5 {[%emt 0:00:05]} 47. Rf5 {[%emt 0:00:56]} Rxe4 {[%emt 0:00:07]} 48. hxg5 {[%emt 0:00:04]} hxg5 {[%emt 0:00:02]} 49. Rf3 {[%emt 0:00:12]} g4 {[%emt 0:00:31]} 50. Rc3 {[%emt 0:00:01]} Kd6 {[%emt 0:00:09]} 51. Kb5 {[%emt 0:00:01]} Kd5 {[%emt 0:00:11]} 52. Rd3+ {[%emt 0:00:01]} Ke5 {[%emt 0:00:07]} 53. Rc3 {[%emt 0:00:07]} Kd5 {[%emt 0:00:01]} 54. Rd3+ {[%emt 0:00:38]} Ke5 {[%emt 0:00:01]} 55. Kc5 {[%emt 0:00:01]} Ke6 {[%emt 0:00:14]} 56. Rd8 {[%emt 0:00:04]} Ke7 {[%emt 0:00:11]} 57. Rd4 {[%emt 0:00:25]} Re3 {[%emt 0:00:04]} 58. Rxg4 {[%emt 0:00:20]} Rxa3 {[%emt 0:00:01]} 59. Kb4 {[%emt 0:00:01]} Ra1 {[%emt 0:00:03]} 60. Rg8 {[%emt 0:00:07]} Kf7 {[%emt 0:00:09]} 61. Rg4 {[%emt 0:00:03]} Kf6 {[%emt 0:00:04]} 62. Kc3 {[%emt 0:00:07]} Kf5 {[%emt 0:00:06]} 63. Rf4+ {[%emt 0:00:03]} Kg5 {[%emt 0:00:01]} 64. Kb2 {[%emt 0:00:06]} Rg1 {[%emt 0:00:03]} 65. Rxa4 {[%emt 0:00:18]} 1/2-1/2

[Event "4th CNE NED-ch Women Rapid"]
[Site "Amstelveen"]
[Date "2018.11.18"]
[Round "1"]
[White "Haast, Anne"]
[Black "Ratsma, Rosa"]
[Result "1-0"]
[ECO "A21"]
[WhiteElo "2309"]
[BlackElo "2269"]
[Annotator "NA"]
[PlyCount "36"]
[EventDate "2018.11.18"]
[EventType "tourn"]
[EventCountry "NED"]
[SourceTitle "playchess.com"]
[Source "ChessBase"]
[SourceQuality "1"]
[TimeControl "900+10"]

1. c4 {[%emt 0:00:00]} e5 {[%emt 0:00:00]} 2. Nc3 {[%emt 0:00:00]} Bb4 {[%emt 0:00:00]} 3. Nd5 {[%emt 0:00:00]} Bc5 {[%emt 0:00:00]} 4. Nf3 {[%emt 0:00:26]} c6 {[%emt 0:00:00]} 5. Nc3 {[%emt 0:00:05]} Qe7 {[%emt 0:00:16]} 6. d4 {[%emt 0:00:51]} exd4 {[%emt 0:00:02]} 7. Nxd4 {[%emt 0:00:02]} Nf6 {[%emt 0:00:01]} 8. Nf5 {[%emt 0:00:13]} Qe5 {[%emt 0:00:04]} 9. Nxg7+ {[%emt 0:00:11]} Kf8 {[%emt 0:00:01]} 10. f4 {[%emt 0:00:36]} Qc7 {[%emt 0:00:03]} 11. Nf5 {[%emt 0:00:05]} d5 {[%emt 0:00:02]} 12. Nd4 {[%emt 0:00:35]} dxc4 {[%emt 0:00:03]} 13. e3 {[%emt 0:00:26]} Rg8 {[%emt 0:00:03]} 14. g3 {[%emt 0:00:44]} Bg4 {[%emt 0:00:03]} 15. Qd2 {[%emt 0:00:01]} Nbd7 {[%emt 0:01:05]} 16. Bxc4 {[%emt 0:00:14]} Re8 {[%emt 0:00:16]} 17. a3 {[%emt 0:03:40]} a5 {[%emt 0:00:54]} 18. b3 {[%emt 0:00:52]} Nb6 {[%emt 0:01:38]} 1-0

[Event "4th CNE NED-ch Women Rapid"]
[Site "Amstelveen"]
[Date "2018.11.18"]
[Round "1"]
[White "De Jong-Muhren, Bianca"]
[Black "Van Foreest, Machteld"]
[Result "1-0"]
[ECO "B47"]
[WhiteElo "2243"]
[BlackElo "2003"]
[Annotator "NA"]
[PlyCount "91"]
[EventDate "2018.11.18"]
[EventType "tourn"]
[EventCountry "NED"]
[SourceTitle "playchess.com"]
[Source "ChessBase"]
[SourceQuality "1"]
[TimeControl "900+10"]

1. e4 {[%emt 0:00:00]} c5 {[%emt 0:00:00]} 2. Nf3 {[%emt 0:00:00]} e6 {[%emt 0:00:00]} 3. d4 {[%emt 0:00:01]} cxd4 {[%emt 0:00:02]} 4. Nxd4 {[%emt 0:00:01]} Nc6 {[%emt 0:00:01]} 5. Nc3 {[%emt 0:00:10]} Qc7 {[%emt 0:00:01]} 6. Be2 {[%emt 0:00:31]} Nf6 {[%emt 0:00:05]} 7. O-O {[%emt 0:00:01]} a6 {[%emt 0:00:59]} 8. Be3 {[%emt 0:00:03]} b5 {[%emt 0:00:30]} 9. Nxc6 {[%emt 0:03:18]} dxc6 {[%emt 0:00:38]} 10. a3 {[%emt 0:03:30]} Bb7 {[%emt 0:02:10]} 11. f4 {[%emt 0:00:53]} c5 {[%emt 0:01:04]} 12. e5 {[%emt 0:02:25]} Nd5 {[%emt 0:00:32]} 13. Nxd5 {[%emt 0:00:05]} Bxd5 {[%emt 0:00:09]} 14. c4 {[%emt 0:00:09]} bxc4 {[%emt 0:02:48]} 15. Rc1 {[%emt 0:01:16]} Rb8 {[%emt 0:00:47]} 16. Bxc4 {[%emt 0:01:14]} Bxc4 {[%emt 0:00:31]} 17. Rxc4 {[%emt 0:00:01]} Rxb2 {[%emt 0:00:49]} 18. Qa4+ {[%emt 0:00:02]} Qd7 {[%emt 0:00:39]} 19. Qxa6 {[%emt 0:00:16]} Qb7 {[%emt 0:02:46]} 20. Qa4+ {[%emt 0:01:20]} Qb5 {[%emt 0:00:02]} 21. Qa8+ {[%emt 0:00:17]} Kd7 {[%emt 0:01:28]} 22. Rd1+ {[%emt 0:00:02]} Kc7 {[%emt 0:00:02]} 23. Qd8+ {[%emt 0:00:15]} Kc6 {[%emt 0:00:38]} 24. Qc8+ {[%emt 0:01:18]} Kb6 {[%emt 0:00:02]} 25. Qb8+ {[%emt 0:00:19]} Kc6 {[%emt 0:00:44]} 26. Qc8+ {[%emt 0:00:26]} Kb6 {[%emt 0:00:01]} 27. Rdc1 {[%emt 0:00:23]} Qc6 {[%emt 0:00:50]} 28. Qb8+ {[%emt 0:00:21]} Qb7 {[%emt 0:00:01]} 29. Qxb7+ {[%emt 0:00:42]} Kxb7 {[%emt 0:00:01]} 30. Bxc5 {[%emt 0:00:09]} Bxc5+ {[%emt 0:00:01]} 31. Rxc5 {[%emt 0:00:01]} Rf8 {[%emt 0:01:32]} 32. Rc7+ {[%emt 0:00:08]} Kb6 {[%emt 0:00:01]} 33. R1c6+ {[%emt 0:00:07]} Kb5 {[%emt 0:00:01]} 34. Rc5+ {[%emt 0:00:19]} Kb6 {[%emt 0:00:03]} 35. R5c6+ {[%emt 0:00:03]} Kb5 {[%emt 0:00:01]} 36. Rd6 {[%emt 0:00:01]} Ra2 {[%emt 0:00:16]} 37. Rd3 {[%emt 0:00:09]} Kb6 {[%emt 0:00:07]} 38. Rc4 {[%emt 0:00:19]} Ra8 {[%emt 0:00:37]} 39. Rb3+ {[%emt 0:00:02]} Ka5 {[%emt 0:00:05]} 40. Rc7 {[%emt 0:00:34]} Ka4 {[%emt 0:00:01]} 41. Rb1 {[%emt 0:00:05]} Kxa3 {[%emt 0:00:31]} 42. Rxf7 {[%emt 0:00:03]} Ra4 {[%emt 0:00:01]} 43. g3 {[%emt 0:00:07]} g6 {[%emt 0:00:20]} 44. Rxh7 {[%emt 0:00:02]} Rd2 {[%emt 0:00:04]} 45. Ra1+ {[%emt 0:00:09]} Kb3 {[%emt 0:00:03]} 46. Rb7+ {[%emt 0:00:03]} 1-0

[Event "4th CNE NED-ch Women Rapid"]
[Site "Amstelveen"]
[Date "2018.11.18"]
[Round "1"]
[White "Keetman, Maaike"]
[Black "Paulet, Iozefina"]
[Result "0-1"]
[ECO "E15"]
[WhiteElo "2176"]
[BlackElo "2281"]
[Annotator "NA"]
[PlyCount "27"]
[EventDate "2018.11.18"]
[EventType "tourn"]
[EventCountry "NED"]
[SourceTitle "playchess.com"]
[Source "ChessBase"]
[SourceQuality "1"]
[TimeControl "900+10"]

1. d4 {[%emt 0:00:00]} Nf6 {[%emt 0:00:00]} 2. c4 {[%emt 0:00:00]} e6 {[%emt 0:00:00]} 3. Nf3 {[%emt 0:00:06]} b6 {[%emt 0:00:00]} 4. g3 {[%emt 0:00:07]} Ba6 {[%emt 0:00:01]} 5. b3 {[%emt 0:00:05]} Bb7 {[%emt 0:00:02]} 6. Bg2 {[%emt 0:00:13]} Bb4+ {[%emt 0:00:03]} 7. Bd2 {[%emt 0:00:02]} a5 {[%emt 0:00:02]} 8. O-O {[%emt 0:00:10]} O-O {[%emt 0:00:04]} 9. Qc2 {[%emt 0:00:41]} Re8 {[%emt 0:00:21]} 10. Bg5 {[%emt 0:01:04]} a4 {[%emt 0:00:31]} 11. Nbd2 {[%emt 0:01:00]} h6 {[%emt 0:00:34]} 12. Bxf6 {[%emt 0:00:48]} Qxf6 {[%emt 0:00:03]} 13. Rad1 {[%emt 0:00:35]} axb3 {[%emt 0:00:35]} 14. axb3 {[%emt 0:00:03]} 0-1

[Event "4th CNE NED-ch Women Rapid"]
[Site "Amstelveen"]
[Date "2018.11.18"]
[Round "2"]
[White "Lanchava, Tea"]
[Black "De Jong-Muhren, Bianca"]
[Result "1-0"]
[ECO "A20"]
[WhiteElo "2314"]
[BlackElo "2243"]
[Annotator "NA"]
[PlyCount "169"]
[EventDate "2018.11.18"]
[EventType "tourn"]
[EventCountry "NED"]
[SourceTitle "playchess.com"]
[Source "ChessBase"]
[SourceQuality "1"]
[TimeControl "900+10"]

1. c4 {[%emt 0:00:00]} e5 {[%emt 0:00:00]} 2. g3 {[%emt 0:00:00]} Nf6 {[%emt 0:00:00]} 3. Bg2 {[%emt 0:00:00]} Bc5 {[%emt 0:00:16]} 4. Nc3 {[%emt 0:00:02]} a6 {[%emt 0:00:45]} 5. Nf3 {[%emt 0:00:05]} d6 {[%emt 0:00:04]} 6. O-O {[%emt 0:00:04]} Nc6 {[%emt 0:00:17]} 7. e3 {[%emt 0:00:30]} O-O {[%emt 0:00:06]} 8. d4 {[%emt 0:00:03] A29: English Opening: Four Knights Variation with 4 g3} Ba7 {[%emt 0:00:50]} 9. h3 {[%emt 0:00:28]} h6 {[%emt 0:00:24]} 10. a3 {[%emt 0:00:24]} (10. dxe5 dxe5 11. Qxd8 Rxd8 12. b3 Be6 13. Ba3 Rd7 14. Rfd1 Rad8 15. Rxd7 Rxd7 {½-½ (41) Howell,D (2676)-Ponomariov,R (2694) Riadh 2017}) 10... exd4 {[%emt 0:02:21]} 11. exd4 {[%emt 0:00:02]} Ne7 {[%emt 0:00:04]} 12. g4 $146 {[%emt 0:00:17]} ({Predecessor:} 12. b4) 12... Nxg4 {[%emt 0:03:27]} 13. hxg4 {[%emt 0:00:07]} Bxg4 {[%emt 0:00:00]} 14. Qd3 {[%emt 0:00:29]} c6 {[%emt 0:01:22]} 15. Nh2 {[%emt 0:00:11]} Bh5 {[%emt 0:00:48]} 16. Be3 {[%emt 0:00:15]} d5 {[%emt 0:00:25]} 17. Ne2 {[%emt 0:01:35]} Bg6 {[%emt 0:02:50]} 18. Qc3 {[%emt 0:00:08]} dxc4 {[%emt 0:00:29]} 19. Qxc4 {[%emt 0:00:04]} Nd5 {[%emt 0:00:34]} 20. Bxd5 {[%emt 0:03:16]} (20. Qb3 $16) 20... cxd5 {[%emt 0:00:02]} 21. Qb3 {[%emt 0:00:07]} Rc8 {[%emt 0:01:59]} (21... Qh4 $11 {keeps the balance.}) 22. Rac1 {[%emt 0:00:08]} Bb8 {[%emt 0:00:56] [#]} 23. Bf4 {[%emt 0:00:32]} ({Much weaker is} 23. Qxb7 $6 Qh4 $11) (23. Rxc8 $1 $16 Qxc8 24. Qxd5) 23... Bxf4 {[%emt 0:00:35]} 24. Nxf4 {[%emt 0:00:02]} Be4 {[%emt 0:00:06]} 25. Rxc8 {[%emt 0:00:30]} Qxc8 {[%emt 0:00:09]} (25... Qg5+ $16 26. Qg3 Rxc8) 26. Qg3 {[%emt 0:00:13]} Qc2 {[%emt 0:00:11]} 27. f3 {[%emt 0:00:24]} Bf5 {[%emt 0:00:08]} 28. Rf2 {[%emt 0:00:01]} Qd1+ {[%emt 0:00:07]} 29. Kg2 {[%emt 0:00:03]} Qxd4 {[%emt 0:00:02]} 30. Ng4 {[%emt 0:00:47]} Kh7 {[%emt 0:00:16]} 31. Nh5 {[%emt 0:00:18]} Bg6 {[%emt 0:00:09]} 32. Nf4 {[%emt 0:00:18]} Bf5 {[%emt 0:00:02]} 33. Nh3 {[%emt 0:01:07]} Rc8 {[%emt 0:00:13]} 34. Qf4 {[%emt 0:00:25]} Qxf4 {[%emt 0:00:13]} 35. Nxf4 {[%emt 0:00:02]} d4 {[%emt 0:00:22]} 36. Rd2 {[%emt 0:00:14]} Rd8 {[%emt 0:00:13]} 37. Ne2 {[%emt 0:00:11]} d3 {[%emt 0:00:10]} 38. Nc3 {[%emt 0:00:15]} Re8 {[%emt 0:00:10]} 39. Nf2 {[%emt 0:00:02]} Re3 {[%emt 0:00:12]} 40. Nce4 {[%emt 0:00:44]} Re2 {[%emt 0:00:07]} 41. Rxd3 {[%emt 0:01:16]} Rxb2 {[%emt 0:00:02]} 42. Rc3 {[%emt 0:00:18]} b5 {[%emt 0:00:22]} 43. Nd6 {[%emt 0:00:11]} Be6 {[%emt 0:00:04]} 44. Kg3 {[%emt 0:00:13]} a5 {[%emt 0:00:05]} 45. Rc5 {[%emt 0:00:15]} Rb3 {[%emt 0:00:05]} 46. Nxb5 {[%emt 0:00:11]} Bd7 {[%emt 0:00:16]} 47. a4 {[%emt 0:00:09]} Rb4 {[%emt 0:00:05]} 48. Rc7 {[%emt 0:00:15]} Bxb5 {[%emt 0:00:20]} 49. axb5 {[%emt 0:00:03]} Rxb5 {[%emt 0:00:12]} 50. Rxf7 {[%emt 0:00:01]} a4 {[%emt 0:00:04]} 51. Ra7 {[%emt 0:00:03]} Rb4 {[%emt 0:00:00]} 52. Ng4 {[%emt 0:00:05]} h5 {[%emt 0:00:24]} 53. Nf6+ {[%emt 0:00:28]} Kh6 {[%emt 0:00:10]} 54. Ne4 {[%emt 0:00:02]} Rc4 {[%emt 0:00:15]} 55. Nd6 {[%emt 0:00:15]} h4+ {[%emt 0:00:11]} 56. Kh3 {[%emt 0:00:02]} Rf4 {[%emt 0:00:06]} 57. Nf7+ {[%emt 0:00:35]} Kh5 {[%emt 0:00:12]} 58. Ra5+ {[%emt 0:00:13]} Kg6 {[%emt 0:00:02]} 59. Ne5+ {[%emt 0:00:04]} Kf6 {[%emt 0:00:11]} 60. Ng4+ {[%emt 0:00:16]} Ke6 {[%emt 0:00:10]} 61. Kg2 {[%emt 0:00:20]} Kd6 {[%emt 0:00:15]} 62. Ra7 {[%emt 0:00:15]} g5 {[%emt 0:00:10]} 63. Ra5 {[%emt 0:00:04]} Kc6 {[%emt 0:00:14]} 64. Rxg5 {[%emt 0:00:09]} Kb6 {[%emt 0:00:02]} 65. Rg8 {[%emt 0:00:15]} Kb7 {[%emt 0:00:04]} 66. Re8 {[%emt 0:00:18]} a3 {[%emt 0:00:05]} 67. Re2 {[%emt 0:00:05]} Ra4 {[%emt 0:00:05]} 68. Ra2 {[%emt 0:00:02]} Kc6 {[%emt 0:00:06]} 69. Ne5+ {[%emt 0:01:30]} Kd5 {[%emt 0:00:06]} 70. Nd3 {[%emt 0:00:02]} Kc4 {[%emt 0:00:32]} 71. Nc1 {[%emt 0:00:02]} Kc3 $2 {[%emt 0:00:18]} (71... Kd5 $16) 72. Rf2 {[%emt 0:00:07]} (72. Kh3 $18) 72... Ra8 73. f4 {[%emt 0:00:06]} Rg8+ {[%emt 0:00:16]} 74. Kh2 {[%emt 0:00:08]} Rd8 {[%emt 0:00:15]} 75. f5 {[%emt 0:00:12]} Rd1 {[%emt 0:00:00]} 76. Na2+ {[%emt 0:00:11]} Kb3 {[%emt 0:00:02]} 77. f6 {[%emt 0:00:09]} Rd8 {[%emt 0:00:22]} 78. Nc1+ {[%emt 0:00:05]} Kc3 {[%emt 0:00:05]} 79. Kh3 {[%emt 0:00:32]} Rh8 {[%emt 0:00:21]} 80. f7 {[%emt 0:00:02]} Rf8 {[%emt 0:00:02]} 81. Kxh4 {[%emt 0:00:04]} Kd4 {[%emt 0:00:05]} 82. Kg5 {[%emt 0:00:04]} Ke5 {[%emt 0:00:02]} 83. Re2+ {[%emt 0:00:01]} Kd6 {[%emt 0:00:01]} 84. Kf6 {[%emt 0:00:02]} Rc8 {[%emt 0:00:21]} 85. Rd2+ {[%emt 0:00:06] Kd5} 1-0

[Event "4th CNE NED-ch Women Rapid"]
[Site "Amstelveen"]
[Date "2018.11.18"]
[Round "2"]
[White "Paulet, Iozefina"]
[Black "Haast, Anne"]
[Result "0-1"]
[ECO "B40"]
[WhiteElo "2281"]
[BlackElo "2309"]
[Annotator "ChessBase"]
[PlyCount "124"]
[EventDate "2018.11.18"]
[EventType "tourn"]
[EventCountry "NED"]
[SourceTitle "playchess.com"]
[Source "ChessBase"]
[SourceQuality "1"]
[TimeControl "900+10"]

1. e4 {[%emt 0:00:00]} c5 {[%emt 0:00:00]} 2. Nf3 {[%emt 0:00:00]} e6 {[%emt 0:00:00]} 3. b3 d5 {[%emt 0:00:38]} 4. exd5 {[%emt 0:00:02]} Qxd5 {[%emt 0:00:08]} 5. Bc4 {[%emt 0:00:14]} Qd8 {[%emt 0:00:09]} 6. Bb2 {[%emt 0:00:04]} Nf6 {[%emt 0:00:03]} 7. Ne5 {[%emt 0:00:45]} a6 {[%emt 0:00:58]} 8. a4 {[%emt 0:00:05]} Be7 {[%emt 0:00:07]} 9. O-O {[%emt 0:00:04]} O-O {[%emt 0:00:02]} 10. a5 {[%emt 0:02:08]} Nbd7 {[%emt 0:00:26]} 11. f4 {[%emt 0:00:32]} Nd5 {[%emt 0:00:42]} 12. Nc3 {[%emt 0:01:07]} N7f6 {[%emt 0:00:57]} 13. Nxd5 {[%emt 0:00:04]} exd5 {[%emt 0:00:20]} 14. Bd3 {[%emt 0:00:07]} Ne4 {[%emt 0:00:20]} 15. Bxe4 {[%emt 0:00:27]} dxe4 {[%emt 0:00:04]} 16. Qe2 {[%emt 0:00:01]} Bf6 {[%emt 0:01:40]} 17. Bc3 {[%emt 0:01:43]} Bf5 {[%emt 0:01:49]} 18. Ra4 {[%emt 0:03:35]} Qc8 {[%emt 0:00:42]} 19. Rc4 {[%emt 0:00:28]} Rd8 {[%emt 0:01:58]} 20. Qe3 {[%emt 0:01:39]} Rd5 {[%emt 0:00:11]} 21. Rb1 {[%emt 0:00:30]} Be7 {[%emt 0:00:53]} 22. Ra4 {[%emt 0:00:13]} c4 {[%emt 0:00:42]} 23. Rxc4 {[%emt 0:00:24]} Qf8 {[%emt 0:00:25]} 24. Qg3 {[%emt 0:00:16]} h5 {[%emt 0:00:22]} 25. Rc1 {[%emt 0:01:27]} h4 {[%emt 0:00:08]} 26. Qe1 {[%emt 0:00:01]} f6 {[%emt 0:00:12]} 27. Qxh4 {[%emt 0:00:21]} fxe5 {[%emt 0:00:05]} 28. Qg3 {[%emt 0:00:20]} exf4 {[%emt 0:00:07]} 29. Qxf4 {[%emt 0:00:01]} Bf6 {[%emt 0:00:06]} 30. Rf1 {[%emt 0:00:16]} Bxc3 {[%emt 0:00:04]} 31. Rxc3 {[%emt 0:00:11]} Qe7 {[%emt 0:01:03]} 32. Rc7 {[%emt 0:00:17]} Qe5 {[%emt 0:00:13]} 33. Qxe5 {[%emt 0:00:07]} Rxe5 {[%emt 0:00:01]} 34. Rxb7 {[%emt 0:00:07]} Rd8 {[%emt 0:00:02]} 35. Rf2 {[%emt 0:00:12]} Rxa5 {[%emt 0:00:20]} 36. h3 {[%emt 0:00:07]} Bg6 {[%emt 0:00:22]} 37. Rb6 {[%emt 0:00:08]} Kh7 {[%emt 0:00:03]} 38. Kh2 {[%emt 0:00:12]} Rad5 {[%emt 0:00:08]} 39. Rf4 {[%emt 0:00:30]} R5d6 {[%emt 0:00:19]} 40. Rxd6 {[%emt 0:00:44]} Rxd6 {[%emt 0:00:01]} 41. Rf2 {[%emt 0:00:01]} a5 {[%emt 0:00:21]} 42. g4 {[%emt 0:00:43]} Rc6 {[%emt 0:00:15]} 43. c3 {[%emt 0:00:51]} Rb6 {[%emt 0:00:04]} 44. h4 {[%emt 0:00:06]} Rxb3 {[%emt 0:00:47]} 45. Rf8 {[%emt 0:00:01]} e3 {[%emt 0:00:37]} 46. dxe3 {[%emt 0:00:21]} Rxc3 {[%emt 0:00:03]} 47. Ra8 {[%emt 0:00:02]} Rc5 {[%emt 0:00:27]} 48. h5 {[%emt 0:00:02]} Bc2 {[%emt 0:00:09]} 49. Kg3 {[%emt 0:00:02]} a4 {[%emt 0:00:11]} 50. Kh4 {[%emt 0:00:04]} Rc4 {[%emt 0:00:09]} 51. Kg5 {[%emt 0:01:12]} Bd1 {[%emt 0:00:07]} 52. h6 {[%emt 0:00:01]} gxh6+ {[%emt 0:00:16]} 53. Kf6 {[%emt 0:00:01]} Rc6+ {[%emt 0:00:46]} 54. Kf5 {[%emt 0:00:01]} Rc7 {[%emt 0:00:21]} 55. e4 {[%emt 0:00:14]} Rg7 {[%emt 0:00:25]} 56. Kf6 {[%emt 0:00:09]} Rg6+ {[%emt 0:00:06]} 57. Ke5 {[%emt 0:00:34]} Rxg4 {[%emt 0:00:14]} 58. Kf5 {[%emt 0:00:05]} Rg7 {[%emt 0:00:11]} 59. e5 {[%emt 0:00:00]} Bb3 {[%emt 0:00:21]} 60. e6 {[%emt 0:00:34]} Re7 {[%emt 0:00:50]} 61. Ra6 {[%emt 0:00:05]} Kg7 {[%emt 0:00:08]} 62. Rd6 {[%emt 0:00:10]} Bxe6+ {[%emt 0:00:11]} 0-1

[Event "4th CNE NED-ch Women Rapid"]
[Site "Amstelveen"]
[Date "2018.11.18"]
[Round "2"]
[White "Kazarian, Anna-Maja"]
[Black "Ratsma, Rosa"]
[Result "1-0"]
[ECO "E06"]
[WhiteElo "2194"]
[BlackElo "2269"]
[Annotator "NA"]
[PlyCount "83"]
[EventDate "2018.11.18"]
[EventType "tourn"]
[EventCountry "NED"]
[SourceTitle "playchess.com"]
[Source "ChessBase"]
[SourceQuality "1"]
[TimeControl "900+10"]

1. Nf3 {[%emt 0:00:00]} Nf6 {[%emt 0:00:00]} 2. c4 {[%emt 0:00:00]} e6 {[%emt 0:00:00]} 3. g3 {[%emt 0:00:06]} d5 {[%emt 0:00:00]} 4. d4 {[%emt 0:00:06]} Be7 {[%emt 0:00:00]} 5. Bg2 {[%emt 0:00:01]} O-O {[%emt 0:00:02]} 6. Qc2 {[%emt 0:00:32]} c5 {[%emt 0:00:09]} 7. cxd5 {[%emt 0:00:34]} Nxd5 {[%emt 0:00:37]} 8. dxc5 {[%emt 0:00:43]} Qa5+ {[%emt 0:00:40]} 9. Bd2 {[%emt 0:00:03]} Qxc5 {[%emt 0:00:03]} 10. Qxc5 {[%emt 0:00:05]} Bxc5 {[%emt 0:00:02]} 11. O-O {[%emt 0:00:38]} Nc6 {[%emt 0:00:09]} 12. Nc3 {[%emt 0:00:14]} Rd8 {[%emt 0:02:07]} 13. Rfd1 {[%emt 0:00:28]} h6 {[%emt 0:00:43]} 14. Rac1 {[%emt 0:00:14]} Bb6 {[%emt 0:00:59]} 15. Be1 {[%emt 0:01:23]} Nf6 {[%emt 0:01:02]} 16. Na4 {[%emt 0:01:26]} Rxd1 {[%emt 0:00:47]} 17. Rxd1 {[%emt 0:00:03]} Bc7 {[%emt 0:00:07]} 18. b4 {[%emt 0:00:49]} a6 {[%emt 0:01:49]} 19. a3 {[%emt 0:01:53]} Rb8 {[%emt 0:01:20]} 20. Rc1 {[%emt 0:01:17]} Bd7 {[%emt 0:01:13]} 21. Nc5 {[%emt 0:00:02]} Be8 {[%emt 0:00:03]} 22. Bc3 {[%emt 0:01:51]} Bd6 {[%emt 0:01:37]} 23. Bb2 {[%emt 0:01:00]} a5 {[%emt 0:02:12]} 24. b5 {[%emt 0:00:32]} Ne7 {[%emt 0:00:03]} 25. a4 {[%emt 0:01:20]} Nfd5 {[%emt 0:00:22]} 26. Nb3 {[%emt 0:00:46]} Bb4 {[%emt 0:00:18]} 27. Bd4 {[%emt 0:00:42]} Rc8 {[%emt 0:01:01]} 28. Rxc8 {[%emt 0:00:14]} Nxc8 {[%emt 0:00:01]} 29. Ne5 {[%emt 0:00:16]} Ncb6 {[%emt 0:00:27]} 30. e4 {[%emt 0:01:07]} Nxa4 {[%emt 0:00:46]} 31. exd5 {[%emt 0:00:01]} Bxb5 {[%emt 0:00:04]} 32. dxe6 {[%emt 0:00:17]} fxe6 {[%emt 0:00:01]} 33. Bxb7 {[%emt 0:00:02]} Nc3 {[%emt 0:00:10]} 34. Bc5 {[%emt 0:01:10]} Bxc5 {[%emt 0:01:06]} 35. Nxc5 {[%emt 0:00:02]} Kf8 {[%emt 0:00:16]} 36. Nxe6+ {[%emt 0:00:10]} Ke7 {[%emt 0:00:06]} 37. Nd4 {[%emt 0:00:08]} Be8 {[%emt 0:00:11]} 38. Nec6+ {[%emt 0:00:08]} Kd6 {[%emt 0:00:11]} 39. Nxa5 {[%emt 0:00:04]} Kc5 {[%emt 0:00:09]} 40. Nab3+ {[%emt 0:00:18]} Kb4 {[%emt 0:00:26]} 41. Nd2 {[%emt 0:00:08]} Bf7 {[%emt 0:00:13]} 42. Nf5 {[%emt 0:00:10]} 1-0